fUSD/lending_fUSD_20260214
["ID","MTS","AMOUNT","RATE_DAILY","PERIOD"]
[405383955,1771108270617,-1999.0,0.0004178,120]
[405383956,1771108270627,-99635.55,0.000418,14]
[405383957,1771108270636,-1036.1,0.00041804,30]
[405383958,1771108270645,-151.0,0.000419,120]
[405383959,1771108270655,-1432.3061841,0.00041911,120]
[405383960,1771108270664,-500.0,0.00041917,120]
[405383961,1771108270674,-192.25212841,0.00041917,120]
[405383962,1771108270683,-500.0,0.00041917,120]
[405383963,1771108270693,-500.0,0.00041917,120]
[405383964,1771108270703,-600.25,0.00041917,120]
[405383965,1771108270712,-500.0,0.00041917,120]
[405383966,1771108270721,-281.01598854,0.00041917,120]
[405383967,1771108270731,-1523.24,0.00041917,120]
[405383968,1771108270740,-807.32,0.00041917,120]
[405383969,1771108270749,-500.0,0.00041917,120]
[405383970,1771108270759,-650.69,0.00041917,120]
[405383971,1771108270770,-1680.66,0.00041917,120]
[405383972,1771108270781,-6340.64,0.00041917,120]
[405383973,1771108270791,-500.0,0.00041917,120]
[405383974,1771108270800,-500.0,0.00041917,120]
[405383975,1771108270810,-500.0,0.00041917,120]
[405383976,1771108270820,-500.0,0.00041917,120]
[405383977,1771108270831,-501.46,0.00041917,120]
[405383978,1771108270841,-500.0,0.00041917,120]
[405383979,1771108270852,-500.0,0.00041917,120]
[405383980,1771108270862,-500.0,0.00041917,120]
[405383981,1771108270872,-3606.02,0.00041917,120]
[405383982,1771108270882,-4408.87,0.00041917,120]
[405383983,1771108270891,-500.0,0.00041917,120]
[405383984,1771108270901,-500.0,0.00041917,120]
[405383985,1771108270911,-500.0,0.00041917,120]
[405383986,1771108270920,-642.17437513,0.00041917,120]
[405383987,1771108270930,-1062.55,0.00041917,120]
[405383988,1771108270939,-426.01227448,0.00041917,60]
[405383989,1771108270950,-1192.16,0.00041917,15]
[405383990,1771108270959,-4321.29,0.00041917,120]
[405383991,1771108270968,-644.45,0.00041917,120]
[405383992,1771108270977,-602.35596255,0.00041917,120]
[405383993,1771108270987,-509.47,0.00041917,120]
[405383994,1771108270996,-750.76,0.00041917,120]
[405383995,1771108271006,-500.0,0.00041917,120]
[405383996,1771108271015,-5753.87,0.00041917,120]
[405383997,1771108271025,-500.0,0.00041917,120]
[405383998,1771108271035,-500.0,0.00041917,120]
[405383999,1771108271044,-500.0,0.00041917,120]
[405384000,1771108271054,-178.09459322,0.00041917,120]
[405384001,1771108271067,-199.78458179,0.00041917,120]
[405384002,1771108271077,-694.44,0.00041917,120]
[405384003,1771108271086,-874.73,0.00041917,120]
[405384004,1771108271096,-500.0,0.00041917,120]
[405384005,1771108271105,-730.0,0.00041917,120]
[405384006,1771108271115,-500.0,0.00041917,120]
[405384007,1771108271124,-300.0,0.00041973,5]
[405384008,1771108271134,-3913.70265135,0.00042,120]
[405384009,1771108271143,-1959.0,0.00042,120]
[405384010,1771108271153,-4537.37,0.00042,120]
[405384011,1771108271163,-10000.0,0.00042,120]
[405384012,1771108271172,-500.0,0.00042,120]
[405384013,1771108271182,-1179.78,0.00042009,120]
[405384014,1771108271191,-1036.1,0.00042146,120]
[405384015,1771108271200,-18395.66185018,0.00042158,120]
[405384016,1771108271210,-500.0,0.00042191,120]
[405384017,1771108271219,-500.0,0.00042191,120]
[405384018,1771108271230,-500.0,0.00042191,120]
[405384019,1771108271239,-600.25,0.00042191,120]
[405384020,1771108271249,-500.0,0.00042191,120]
[405384021,1771108271258,-1523.24,0.00042191,120]
[405384022,1771108271267,-807.32,0.00042191,120]
[405384023,1771108271276,-307.00172357,0.00042191,120]
[405384024,1771108271286,-650.69,0.00042191,120]
[405384025,1771108271296,-1680.66,0.00042191,120]
[405384026,1771108271306,-6340.64,0.00042191,120]
[405384027,1771108271315,-500.0,0.00042191,120]
[405384028,1771108271325,-500.0,0.00042191,120]
[405384029,1771108271334,-500.0,0.00042191,120]
[405384030,1771108271343,-500.0,0.00042191,120]
[405384031,1771108271352,-501.46,0.00042191,120]
[405384032,1771108271362,-500.0,0.00042191,120]
[405384033,1771108271372,-500.0,0.00042191,120]
[405384034,1771108271381,-466.98,0.00042191,120]
[405384035,1771108271391,-3606.02,0.00042191,120]
[405384036,1771108271400,-4408.87,0.00042191,120]
[405384037,1771108271410,-500.0,0.00042191,120]
[405384038,1771108271420,-500.0,0.00042191,120]
[405384039,1771108271430,-500.0,0.00042191,120]
[405384040,1771108271440,-1062.55,0.00042191,120]
[405384041,1771108271450,-1192.16,0.00042191,15]
[405384042,1771108271459,-4321.29,0.00042191,120]
[405384043,1771108271469,-644.45,0.00042191,120]
[405384044,1771108271478,-509.47,0.00042191,120]
[405384045,1771108271488,-750.76,0.00042191,120]
[405384046,1771108271498,-500.0,0.00042191,120]
[405384047,1771108271507,-5753.87,0.00042191,120]
[405384048,1771108271517,-500.0,0.00042191,120]
[405384049,1771108271531,-500.0,0.00042191,120]
[405384050,1771108271541,-500.0,0.00042191,120]
[405384051,1771108271551,-694.44,0.00042191,120]
[405384052,1771108271562,-874.73,0.00042191,120]
[405384053,1771108271572,-500.0,0.00042191,120]
[405384054,1771108271582,-730.0,0.00042191,120]
[405384055,1771108271592,-639.60859121,0.00042191,120]
[405384056,1771108271602,-839.0,0.00042192,120]
[405384057,1771108271612,-500.0,0.000422,120]
[405384058,1771108271622,-152.0,0.000424,120]
[405384059,1771108271632,-500.0,0.00042438,120]
[405384060,1771108271641,-500.0,0.00042465,120]
[405384061,1771108271651,-458.88924906,0.00042465,120]
[405384062,1771108271661,-500.0,0.00042465,120]
[405384063,1771108271670,-600.25,0.00042465,120]
[405384064,1771108271679,-500.0,0.00042465,120]
[405384065,1771108271689,-1523.24,0.00042465,120]
[405384066,1771108271699,-807.32,0.00042465,120]
[405384067,1771108271708,-650.69,0.00042465,120]
[405384068,1771108271718,-1680.66,0.00042465,120]
[405384069,1771108271728,-6340.64,0.00042465,120]
[405384070,1771108271737,-500.0,0.00042465,120]
[405384071,1771108271748,-500.0,0.00042465,120]
[405384072,1771108271757,-545.94345035,0.00042465,120]
[405384073,1771108271766,-500.0,0.00042465,120]
[405384074,1771108271776,-501.46,0.00042465,120]
[405384075,1771108271785,-500.0,0.00042465,120]
[405384076,1771108271795,-500.0,0.00042465,120]
[405384077,1771108271804,-3606.02,0.00042465,120]
[405384078,1771108271813,-4408.87,0.00042465,120]
[405384079,1771108271823,-500.0,0.00042465,120]
[405384080,1771108271832,-500.0,0.00042465,120]
[405384081,1771108271845,-296.93196687,0.00042465,120]
[405384082,1771108271855,-1999.0,0.00042465,120]
[405384083,1771108271864,-1062.55,0.00042465,120]
[405384084,1771108271874,-1192.16,0.00042465,15]
[405384085,1771108271883,-4321.29,0.00042465,120]
[405384086,1771108271892,-644.45,0.00042465,120]
[405384087,1771108271902,-509.47,0.00042465,120]
[405384088,1771108271912,-750.76,0.00042465,120]
[405384089,1771108271922,-500.0,0.00042465,120]
[405384090,1771108271931,-5753.87,0.00042465,120]
[405384091,1771108271940,-500.0,0.00042465,120]
[405384092,1771108271950,-500.0,0.00042465,120]
[405384093,1771108271961,-221.67549533,0.00042465,120]
[405384094,1771108271970,-694.44,0.00042465,120]
[405384095,1771108271980,-874.73,0.00042465,120]
[405384096,1771108271990,-500.0,0.00042465,120]
[405384097,1771108272000,-730.0,0.00042465,120]
[405384098,1771108272011,-539.86820521,0.00042471,60]
[405384099,1771108272022,-5325.12842716,0.00042475,120]
[405384100,1771108272031,-1036.1,0.00042489,120]
[405384101,1771108272041,-500.0,0.000425,120]
[405384102,1771108272051,-500.0,0.00042575,120]
[405384103,1771108272060,-2260.49,0.000427,120]
[405384104,1771108272070,-500.0,0.00042712,120]
[405384105,1771108272079,-500.0,0.00042739,120]
[405384106,1771108272089,-500.0,0.00042739,120]
[405384107,1771108272098,-600.25,0.00042739,120]
[405384108,1771108272107,-500.0,0.00042739,120]
[405384109,1771108272117,-1523.24,0.00042739,120]
[405384110,1771108272126,-807.32,0.00042739,120]
[405384111,1771108272135,-650.69,0.00042739,120]
[405384112,1771108272145,-1680.66,0.00042739,120]
[405384113,1771108272154,-6340.64,0.00042739,120]
[405384114,1771108272164,-500.0,0.00042739,120]
[405384115,1771108272174,-500.0,0.00042739,120]
[405384116,1771108272183,-500.0,0.00042739,120]
[405384117,1771108272193,-501.46,0.00042739,120]
[405384118,1771108272203,-500.0,0.00042739,120]
[405384119,1771108272213,-500.0,0.00042739,120]
[405384120,1771108272223,-3606.02,0.00042739,120]
[405384121,1771108272233,-4408.87,0.00042739,120]
[405384122,1771108272243,-500.0,0.00042739,120]
[405384123,1771108272253,-500.0,0.00042739,120]
[405384124,1771108272263,-1062.55,0.00042739,120]
[405384125,1771108272273,-1192.16,0.00042739,15]
[405384126,1771108272283,-4321.29,0.00042739,120]
[405384127,1771108272292,-644.45,0.00042739,120]
[405384128,1771108272303,-509.47,0.00042739,120]
[405384129,1771108272314,-750.76,0.00042739,120]
[405384130,1771108272324,-500.0,0.00042739,120]
[405384131,1771108272334,-5753.87,0.00042739,120]
[405384132,1771108272344,-500.0,0.00042739,120]
[405384133,1771108272355,-500.0,0.00042739,120]
[405384134,1771108272365,-694.44,0.00042739,120]
[405384135,1771108272375,-874.73,0.00042739,120]
[405384136,1771108272386,-500.0,0.00042739,120]
[405384137,1771108272397,-730.0,0.00042739,120]
[405384138,1771108272407,-722.0,0.0004274,120]
[405384139,1771108272416,-4000.0,0.0004274,14]
[405384140,1771108272427,-193.13,0.000428,30]
[405384141,1771108272436,-1220.64,0.000428,30]
[405384142,1771108272447,-151.0,0.000428,120]
[405384143,1771108272459,-99635.55,0.000428,14]
[405384144,1771108272468,-1036.1,0.00042831,120]
[405384145,1771108272478,-500.0,0.00042849,120]
[405384146,1771108272488,-166.93,0.000429,14]
[405384147,1771108272498,-7489.0,0.00042934,30]
[405384148,1771108272508,-4000.0,0.00042984,31]
[405384149,1771108272519,-500.0,0.00042986,120]
[405384150,1771108272530,-118827.52125706,0.00042998,5]
[405384151,1771108272541,-151.0,0.00042999,30]
[405384152,1771108272551,-151.0,0.00042999,41]
[405384153,1771108272562,-500.0,0.00043,120]
[405384154,1771108272574,-10000.0,0.00043,120]
[405384155,1771108272585,-199.0,0.00043,2]
[405384156,1771108272595,-10086.4,0.00043,3]
[405384157,1771108272607,-500.0,0.00043,120]
[405384158,1771108272619,-151.0,0.00043012,60]
[405384159,1771108272629,-151.0,0.00043012,90]
[405384160,1771108272639,-151.0,0.00043012,99]
[405384161,1771108272649,-151.0,0.00043012,120]
[405384162,1771108272659,-500.0,0.00043013,120]
[405384163,1771108272669,-500.0,0.00043013,120]
[405384164,1771108272678,-600.25,0.00043013,120]
[405384165,1771108272688,-458.21025816,0.00043013,120]
[405384166,1771108272697,-1523.24,0.00043013,120]
[405384167,1771108272707,-807.32,0.00043013,120]
[405384168,1771108272718,-650.69,0.00043013,120]
[405384169,1771108272729,-1680.66,0.00043013,120]
[405384170,1771108272739,-6340.64,0.00043013,120]
[405384171,1771108272749,-200.51983315,0.00043013,120]
[405384172,1771108272759,-500.0,0.00043013,120]
[405384173,1771108272769,-500.0,0.00043013,120]
[405384174,1771108272778,-501.46,0.00043013,120]
[405384175,1771108272789,-500.0,0.00043013,120]
[405384176,1771108272799,-500.0,0.00043013,120]
[405384177,1771108272808,-3606.02,0.00043013,120]
[405384178,1771108272818,-4408.87,0.00043013,120]
[405384179,1771108272828,-500.0,0.00043013,120]
[405384180,1771108272838,-500.0,0.00043013,120]
[405384181,1771108272848,-1062.55,0.00043013,120]
[405384182,1771108272858,-1192.16,0.00043013,15]
[405384183,1771108272867,-4321.29,0.00043013,120]
[405384184,1771108272877,-644.45,0.00043013,120]
[405384185,1771108272887,-509.47,0.00043013,120]
[405384186,1771108272898,-750.76,0.00043013,120]
[405384187,1771108272908,-500.0,0.00043013,120]
[405384188,1771108272918,-5753.87,0.00043013,120]
[405384189,1771108272928,-359.29047039,0.00043013,120]
[405384190,1771108272938,-500.0,0.00043013,120]
[405384191,1771108272948,-694.44,0.00043013,120]
[405384192,1771108272958,-874.73,0.00043013,120]
[405384193,1771108272969,-500.0,0.00043013,120]
[405384194,1771108272979,-730.0,0.00043013,120]
[405384195,1771108272989,-1338.03,0.000431,30]
[405384196,1771108273000,-1117.92,0.000431,30]
[405384197,1771108273010,-500.0,0.00043123,120]
[405384198,1771108273020,-1028.68023998,0.0004315,120]
[405384199,1771108273030,-344.82,0.000432,14]
[405384200,1771108273040,-152.0,0.000432,120]
[405384201,1771108273050,-10953.86276352,0.0004322,2]
[405384202,1771108273059,-500.0,0.00043233,10]
[405384203,1771108273069,-500.0,0.0004326,120]
[405384204,1771108273079,-564.21992009,0.00043287,120]
[405384205,1771108273090,-300.05001091,0.00043287,120]
[405384206,1771108273100,-600.25,0.00043287,120]
[405384207,1771108273110,-1523.24,0.00043287,120]
[405384208,1771108273121,-807.32,0.00043287,120]
[405384209,1771108273131,-650.69,0.00043287,120]
[405384210,1771108273143,-1680.66,0.00043287,120]
[405384211,1771108273153,-6340.64,0.00043287,120]
[405384212,1771108273164,-583.68046071,0.00043287,120]
[405384213,1771108273175,-500.0,0.00043287,120]
[405384214,1771108273187,-501.46,0.00043287,120]
[405384215,1771108273197,-500.0,0.00043287,120]
[405384216,1771108273208,-500.0,0.00043287,120]
[405384217,1771108273218,-3606.02,0.00043287,120]
[405384218,1771108273228,-4408.87,0.00043287,120]
[405384219,1771108273238,-500.0,0.00043287,120]
[405384220,1771108273249,-647.89768194,0.00043287,120]
[405384221,1771108273260,-1062.55,0.00043287,120]
[405384222,1771108273269,-1192.16,0.00043287,15]
[405384223,1771108273280,-4321.29,0.00043287,120]
[405384224,1771108273290,-644.45,0.00043287,120]
[405384225,1771108273302,-509.47,0.00043287,120]
[405384226,1771108273313,-750.76,0.00043287,120]
[405384227,1771108273323,-500.0,0.00043287,120]
[405384228,1771108273334,-5753.87,0.00043287,120]
[405384229,1771108273345,-153.25636922,0.00043287,120]
[405384230,1771108273356,-694.44,0.00043287,120]
[405384231,1771108273366,-874.73,0.00043287,120]
[405384232,1771108273376,-625.95554968,0.00043287,120]
[405384233,1771108273387,-730.0,0.00043287,120]
[405384234,1771108273398,-5000.0,0.00043288,120]
[405384235,1771108273408,-82223.81484015,0.000433,120]
[405384236,1771108273418,-392.53,0.000433,14]
[405384237,1771108273428,-2000.0,0.000433,2]
[405384238,1771108273438,-7489.0,0.00043377,30]
[405384239,1771108273447,-500.0,0.00043397,120]
[405384240,1771108273458,-207.0,0.000435,30]
[405384241,1771108273468,-4540.0,0.000435,120]
[405384242,1771108273478,-500.0,0.000435,120]
[405384243,1771108273488,-500.0,0.00043534,120]
[405384244,1771108273499,-400.0,0.0004355,120]
[405384245,1771108273509,-600.25,0.00043561,120]
[405384246,1771108273520,-1523.24,0.00043561,120]
[405384247,1771108273533,-807.32,0.00043561,120]
[405384248,1771108273544,-650.69,0.00043561,120]
[405384249,1771108273554,-1680.66,0.00043561,120]
[405384250,1771108273565,-6340.64,0.00043561,120]
[405384251,1771108273575,-500.0,0.00043561,120]
[405384252,1771108273586,-501.46,0.00043561,120]
[405384253,1771108273598,-171.78273348,0.00043561,120]
[405384254,1771108273609,-398.02179329,0.00043561,120]
[405384255,1771108273619,-3606.02,0.00043561,120]
[405384256,1771108273630,-4408.87,0.00043561,120]
[405384257,1771108273640,-644.32960799,0.00043561,120]
[405384258,1771108273650,-1062.55,0.00043561,120]
[405384259,1771108273660,-1192.16,0.00043561,15]
[405384260,1771108273669,-4321.29,0.00043561,120]
[405384261,1771108273679,-644.45,0.00043561,120]
[405384262,1771108273689,-509.47,0.00043561,120]
[405384263,1771108273699,-750.76,0.00043561,120]
[405384264,1771108273709,-500.0,0.00043561,120]
[405384265,1771108273719,-5753.87,0.00043561,120]
[405384266,1771108273730,-694.44,0.00043561,120]
[405384267,1771108273740,-874.73,0.00043561,120]
[405384268,1771108273750,-730.0,0.00043561,120]
[405384269,1771108273759,-500.0,0.00043671,120]
[405384270,1771108273771,-99635.55,0.000437,14]
[405384271,1771108273781,-151.0,0.000438,120]
[405384272,1771108273793,-500.0,0.00043808,120]
[405384273,1771108273804,-7489.0,0.00043819,30]
[405384274,1771108273814,-500.0,0.00043835,120]
[405384275,1771108273826,-600.25,0.00043835,120]
[405384276,1771108273836,-1523.24,0.00043835,120]
[405384277,1771108273847,-807.32,0.00043835,120]
[405384278,1771108273858,-650.69,0.00043835,120]
[405384279,1771108273868,-1680.66,0.00043835,120]
[405384280,1771108273879,-6340.64,0.00043835,120]
[405384281,1771108273890,-1000.0,0.00043835,120]
[405384282,1771108273900,-1000.0,0.00043835,120]
[405384283,1771108273912,-1000.0,0.00043835,120]
[405384284,1771108273923,-1000.0,0.00043835,120]
[405384285,1771108273934,-521.19091318,0.00043835,120]
[405384286,1771108273945,-501.46,0.00043835,120]
[405384287,1771108273957,-463.28644208,0.00043835,120]
[405384288,1771108273968,-3606.02,0.00043835,120]
[405384289,1771108273978,-4408.87,0.00043835,120]
[405384290,1771108273989,-1062.55,0.00043835,120]
[405384291,1771108274000,-1192.16,0.00043835,15]
[405384292,1771108274010,-4321.29,0.00043835,120]
[405384293,1771108274021,-644.45,0.00043835,120]
[405384294,1771108274032,-509.47,0.00043835,120]
[405384295,1771108274042,-750.76,0.00043835,120]
[405384296,1771108274053,-500.0,0.00043835,120]
[405384297,1771108274063,-5753.87,0.00043835,120]
[405384298,1771108274074,-694.44,0.00043835,120]
[405384299,1771108274085,-874.73,0.00043835,120]
[405384300,1771108274096,-1000.0,0.00043835,120]
[405384301,1771108274108,-1000.0,0.00043835,120]
[405384302,1771108274125,-1000.0,0.00043835,120]
[405384303,1771108274141,-1000.0,0.00043835,120]
[405384304,1771108274152,-1000.0,0.00043835,120]
[405384305,1771108274165,-1000.0,0.00043835,120]
[405384306,1771108274178,-1000.0,0.00043835,120]
[405384307,1771108274189,-1000.0,0.00043835,120]
[405384308,1771108274200,-1000.0,0.00043835,120]
[405384309,1771108274212,-1000.0,0.00043835,120]
[405384310,1771108274223,-1000.0,0.00043835,120]
[405384311,1771108274234,-1000.0,0.00043835,120]
[405384312,1771108274245,-711.45870802,0.00043835,120]
[405384313,1771108274255,-730.0,0.00043835,120]
[405384314,1771108274267,-654.8194992,0.00043836,2]
[405384315,1771108274277,-20000.0,0.00043836,120]
[405384316,1771108274288,-150.83860079,0.00043836,120]
[405384317,1771108274299,-150.0,0.00043836,120]
[405384318,1771108274310,-155.73019087,0.00043836,30]
[405384319,1771108274323,-150.0,0.00043836,120]
[405384320,1771108274336,-500.0,0.00043836,120]
[405384321,1771108274347,-150.0,0.00043836,120]
[405384322,1771108274358,-633.3967944,0.00043836,120]
[405384323,1771108274368,-151.1,0.00043836,120]
[405384324,1771108274379,-500.0,0.00043836,120]
[405384325,1771108274389,-500.0,0.00043836,120]
[405384326,1771108274401,-240.89069465,0.00043836,120]
[405384327,1771108274413,-150.0,0.00043836,120]
[405384328,1771108274424,-150.0,0.00043836,120]
[405384329,1771108274435,-152.37976294,0.00043836,120]
[405384330,1771108274446,-275.7064527,0.00043836,120]
[405384331,1771108274458,-150.0,0.00043836,120]
[405384332,1771108274655,-150.0,0.00043836,120]
[405384333,1771108274665,-150.0,0.00043836,120]
[405384334,1771108274675,-150.0,0.00043836,2]
[405384335,1771108274685,-1121.0,0.00043836,120]
[405384336,1771108274695,-1121.0,0.00043836,120]
[405384337,1771108274705,-1121.0,0.00043836,120]
[405384338,1771108274714,-1121.0,0.00043836,120]
[405384339,1771108274724,-500.0,0.00043836,120]
[405384340,1771108274733,-1121.0,0.00043836,120]
[405384341,1771108274743,-500.0,0.00043836,120]
[405384342,1771108274753,-500.0,0.00043836,120]
[405384343,1771108274763,-1121.0,0.00043836,120]
[405384344,1771108274773,-500.0,0.00043836,120]
[405384345,1771108274782,-1121.0,0.00043836,120]
[405384346,1771108274792,-1121.0,0.00043836,120]
[405384347,1771108274801,-500.0,0.00043836,120]
[405384348,1771108274810,-1121.0,0.00043836,120]
[405384349,1771108274820,-500.0,0.00043836,120]
[405384350,1771108274830,-1121.0,0.00043836,120]
[405384351,1771108274839,-500.0,0.00043836,120]
[405384352,1771108274848,-1121.0,0.00043836,120]
[405384353,1771108274858,-500.0,0.00043836,120]
[405384354,1771108274868,-1121.0,0.00043836,120]
[405384355,1771108274878,-396.31620228,0.00043836,120]
[405384356,1771108274887,-1121.0,0.00043836,120]
[405384357,1771108274896,-1121.0,0.00043836,120]
[405384358,1771108274906,-1121.0,0.00043836,120]
[405384359,1771108274916,-1121.0,0.00043836,120]
[405384360,1771108274925,-1121.0,0.00043836,120]
[405384361,1771108274935,-1121.0,0.00043836,120]
[405384362,1771108274945,-1121.0,0.00043836,120]
[405384363,1771108274954,-1121.0,0.00043836,120]
[405384364,1771108274964,-1121.0,0.00043836,120]
[405384365,1771108274975,-1121.0,0.00043836,120]
[405384366,1771108274985,-2000.0,0.00043894,3]
[405384367,1771108274995,-2000.0,0.00043894,3]
[405384368,1771108275005,-166.93,0.000439,14]
[405384369,1771108275015,-3534.54285145,0.000439,2]
[405384370,1771108275025,-128000.45338262,0.00043933,120]
[405384371,1771108275035,-500.0,0.00043945,120]
[405384372,1771108275044,-2260.49,0.00044,120]
[405384373,1771108275054,-10000.0,0.00044,120]
[405384374,1771108275063,-152.0,0.00044,120]
[405384375,1771108275074,-38408.12829225,0.00044,2]
[405384376,1771108275083,-7273.52762495,0.00044,2]
[405384377,1771108275092,-278.042018,0.00044,57]
[405384378,1771108275103,-5550.0,0.00044,120]
[405384379,1771108275113,-500.0,0.00044,120]
[405384380,1771108275124,-13500.0,0.00044,120]
[405384381,1771108275134,-179.56001182,0.00044015,2]
[405384382,1771108275144,-500.0,0.00044082,120]
[405384383,1771108275154,-1117.92,0.000441,30]
[405384384,1771108275164,-600.25,0.00044109,120]
[405384385,1771108275175,-1523.24,0.00044109,120]
[405384386,1771108275186,-807.32,0.00044109,120]
[405384387,1771108275197,-650.69,0.00044109,120]
[405384388,1771108275207,-1680.66,0.00044109,120]
[405384389,1771108275217,-6340.64,0.00044109,120]
[405384390,1771108275229,-501.46,0.00044109,120]
[405384391,1771108275239,-3606.02,0.00044109,120]
[405384392,1771108275249,-4408.87,0.00044109,120]
[405384393,1771108275259,-1062.55,0.00044109,120]
[405384394,1771108275269,-1192.16,0.00044109,15]
[405384395,1771108275279,-4321.29,0.00044109,120]
[405384396,1771108275288,-644.45,0.00044109,120]
[405384397,1771108275298,-509.47,0.00044109,120]
[405384398,1771108275307,-750.76,0.00044109,120]
[405384399,1771108275317,-500.0,0.00044109,120]
[405384400,1771108275327,-5753.87,0.00044109,120]
[405384401,1771108275336,-694.44,0.00044109,120]
[405384402,1771108275347,-874.73,0.00044109,120]
[405384403,1771108275357,-730.0,0.00044109,120]
[405384404,1771108275367,-6888.0,0.00044113,59]
[405384405,1771108275378,-151.0,0.00044113,59]
[405384406,1771108275388,-151.0,0.00044113,59]
[405384407,1771108275398,-500.0,0.00044113,59]
[405384408,1771108275409,-151.0,0.00044113,63]
[405384409,1771108275419,-151.0,0.00044113,64]
[405384410,1771108275429,-500.0,0.00044113,59]
[405384411,1771108275439,-150.0,0.00044115,2]
[405384412,1771108275449,-571.35872954,0.00044115,2]
[405384413,1771108275459,-512.0,0.00044118,25]
[405384414,1771108275469,-150.0,0.00044122,120]
[405384415,1771108275479,-150.41333081,0.00044136,120]
[405384416,1771108275489,-152.4,0.00044146,120]
[405384417,1771108275499,-18395.66185018,0.00044158,120]
[405384418,1771108275509,-50000.0,0.00044161,38]
[405384419,1771108275519,-50000.0,0.00044161,51]
[405384420,1771108275533,-50000.0,0.00044161,54]
[405384421,1771108275543,-50000.0,0.00044161,55]
[405384422,1771108275553,-50000.0,0.00044161,57]
[405384423,1771108275563,-2090669.10244927,0.00044162,10]
[405384424,1771108275573,-7056475.97005932,0.00044162,10]
[405384425,1771108275582,-2208491.54952832,0.00044162,10]
[405384426,1771108275592,-2607796.95654982,0.00044162,10]
[405384427,1771108275603,-8059958.55140388,0.00044162,10]
[405384428,1771108275612,-10668.14813524,0.00044162,3]
[405384429,1771108275622,-8590742.45929222,0.00044162,10]
[405384430,1771108275631,-16467739.97077515,0.00044162,10]
[405384431,1771108275641,-15455817.86904798,0.00044162,10]
[405384432,1771108275650,-616.39629228,0.00044162,2]
[405384433,1771108275659,-2352906.997588,0.00044162,10]
[405384434,1771108275669,-1029219.16877833,0.00044162,10]
[405384435,1771108275679,-10849.17572231,0.00044162,3]
[405384436,1771108275688,-15203.162865,0.00044162,3]
[405384437,1771108275697,-497.78422739,0.00044162,3]
[405384438,1771108275707,-662287.34400143,0.00044162,10]
[405384439,1771108275716,-1141.12286031,0.00044162,2]
[405384440,1771108275726,-871194.07694818,0.00044162,10]
[405384444,1771109431511,-187.64,0.000146,2]
[405384445,1771109431521,-271.0,0.000146,2]
[405384446,1771109431531,-151.0,0.00014634,2]
[405384447,1771109431541,-151.0,0.00014634,2]
[405384448,1771109431550,-11.58552744,0.00014634,2]
[405384449,1771109431564,-139.41447256,0.00014634,2]
[405384450,1771109431574,-250.0,0.0001606,2]
[405384451,1771109431585,-480.31480893,0.00016567,2]
[405384452,1771109431597,-233.67069107,0.00016567,2]
[405384453,1771109431608,-266.0,0.00016665,2]
[405384454,1771109431617,-375.81930893,0.00016769,2]
[405384455,1771109431630,-624.18069107,0.00016769,2]
[405384457,1771109431639,-970.29295303,0.00017899,2]
[405384480,1771109437768,-229.70704697,0.00017899,2]